[Event "Live Chess"]
[Site "Chess.com"]
[Date "2023.05.20"]
[Round "-"]
[White "JoshMcK"]
[Black "lightningorderyt"]
[Result "1-0"]
[WhiteElo "1552"]
[BlackElo "520"]
[TimeControl "300"]
[EndTime "14:47:21 PDT"]
[Termination "JoshMcK won by resignation"]

1. e4 {[%clk 0:04:58.3]} 1... c6 {[%clk 0:04:59.1]} 2. d4 {[%clk 0:04:56.5]}
2... d5 {[%clk 0:04:57.5]} 3. e5 {[%clk 0:04:55.9]} 3... Bf5 {[%clk 0:04:55.9]}
4. h4 {[%clk 0:04:55.5]} 4... h5 {[%clk 0:04:50.9]} 5. Nf3 {[%clk 0:04:53.7]}
5... c5 {[%clk 0:04:38.9]} 6. Bd3 {[%clk 0:04:51.2]} 6... Nc6 {[%clk 0:04:36.1]}
7. Bxf5 {[%clk 0:04:49.7]} 7... e6 {[%clk 0:04:28.9]} 8. Bh3 {[%clk 0:04:48.5]}
8... cxd4 {[%clk 0:04:22.6]} 9. Nxd4 {[%clk 0:04:44.8]} 9... Nxe5 {[%clk
0:04:21.8]} 10. Bf4 {[%clk 0:04:42.3]} 10... Ng6 {[%clk 0:04:15.5]} 11. Bg3
{[%clk 0:04:40.3]} 11... Bc5 {[%clk 0:04:12.9]} 12. O-O {[%clk 0:04:38.7]} 12...
Qb6 {[%clk 0:04:08.9]} 13. Nb3 {[%clk 0:04:35.5]} 13... O-O-O {[%clk 0:04:00.5]}
14. Nc3 {[%clk 0:04:31.9]} 14... Nf6 {[%clk 0:03:49.8]} 15. Na4 {[%clk
0:04:29.7]} 15... Qc6 {[%clk 0:03:34.7]} 16. Naxc5 {[%clk 0:04:27.1]} 16... Qxc5
{[%clk 0:03:33.9]} 17. Nxc5 {[%clk 0:04:25.8]} 1-0

[Event "Live Chess"]
[Site "Chess.com"]
[Date "2023.05.20"]
[Round "-"]
[White "Delacorta"]
[Black "MrBlond89"]
[Result "1-0"]
[WhiteElo "1424"]
[BlackElo "1377"]
[TimeControl "300"]
[EndTime "14:47:32 PDT"]
[Termination "Delacorta won on time"]

1. d4 {[%clk 0:04:57.2]} 1... d5 {[%clk 0:04:58.7]} 2. Nf3 {[%clk 0:04:56]} 2...
Nc6 {[%clk 0:04:57.5]} 3. e3 {[%clk 0:04:53]} 3... e5 {[%clk 0:04:52.9]} 4. dxe5
{[%clk 0:04:51.2]} 4... Bg4 {[%clk 0:04:49.5]} 5. h3 {[%clk 0:04:48.2]} 5...
Bxf3 {[%clk 0:04:48.3]} 6. Qxf3 {[%clk 0:04:46.6]} 6... Nxe5 {[%clk 0:04:48.2]}
7. Qe2 {[%clk 0:04:46]} 7... Nf6 {[%clk 0:04:38.8]} 8. Qb5+ {[%clk 0:04:39.2]}
8... c6 {[%clk 0:04:32.6]} 9. Qe2 {[%clk 0:04:36.3]} 9... Bd6 {[%clk 0:04:24.8]}
10. Nd2 {[%clk 0:04:35.2]} 10... O-O {[%clk 0:04:22.7]} 11. Nf3 {[%clk
0:04:34.3]} 11... Qb6 {[%clk 0:04:17.1]} 12. Nxe5 {[%clk 0:04:23.5]} 12... Bxe5
{[%clk 0:04:15.9]} 13. c3 {[%clk 0:04:17.1]} 13... Ne4 {[%clk 0:04:06.7]} 14.
Qc2 {[%clk 0:03:56.3]} 14... Rfe8 {[%clk 0:03:47.9]} 15. Bd3 {[%clk 0:03:49.6]}
15... f5 {[%clk 0:03:25.1]} 16. Bxe4 {[%clk 0:03:22.3]} 16... dxe4 {[%clk
0:03:13.2]} 17. Qb3+ {[%clk 0:03:13.3]} 17... Qxb3 {[%clk 0:03:08.3]} 18. axb3
{[%clk 0:03:13.2]} 18... a5 {[%clk 0:03:02.8]} 19. Kd2 {[%clk 0:02:45.3]} 19...
Red8+ {[%clk 0:02:57]} 20. Kc2 {[%clk 0:02:44.6]} 20... b6 {[%clk 0:02:38.5]}
21. c4 {[%clk 0:02:43.8]} 21... b5 {[%clk 0:02:32.1]} 22. Bd2 {[%clk 0:02:40.3]}
22... a4 {[%clk 0:02:22.1]} 23. bxa4 {[%clk 0:02:24.8]} 23... bxa4 {[%clk
0:02:18.7]} 24. Bc3 {[%clk 0:02:19.1]} 24... Bxc3 {[%clk 0:02:12.1]} 25. Kxc3
{[%clk 0:02:18.5]} 25... Rd3+ {[%clk 0:02:01.5]} 26. Kb4 {[%clk 0:02:03.3]}
26... Rb3+ {[%clk 0:01:51.2]} 27. Kc5 {[%clk 0:01:56.3]} 27... Rxb2 {[%clk
0:01:49.1]} 28. Kxc6 {[%clk 0:01:50.2]} 28... Rxf2 {[%clk 0:01:46]} 29. c5
{[%clk 0:01:35.3]} 29... Rxg2 {[%clk 0:01:39.7]} 30. Kd7 {[%clk 0:01:34.1]}
30... Rc2 {[%clk 0:01:27.6]} 31. c6 {[%clk 0:01:32.9]} 31... Ra7+ {[%clk
0:01:23.2]} 32. Kd6 {[%clk 0:01:08]} 32... Kf7 {[%clk 0:01:11.5]} 33. Rhc1
{[%clk 0:00:57.9]} 33... Rd2+ {[%clk 0:00:49.9]} 34. Kc5 {[%clk 0:00:47.2]}
34... a3 {[%clk 0:00:45.2]} 35. Kb6 {[%clk 0:00:45.6]} 35... Ra8 {[%clk
0:00:36.9]} 36. c7 {[%clk 0:00:44.5]} 36... Rb2+ {[%clk 0:00:33.6]} 37. Kc6
{[%clk 0:00:40.2]} 37... Ke6 {[%clk 0:00:18.8]} 38. Rxa3 {[%clk 0:00:29.8]}
38... Rxa3 {[%clk 0:00:16.9]} 39. c8=Q+ {[%clk 0:00:28.7]} 1-0

[Event "Live Chess"]
[Site "Chess.com"]
[Date "2023.05.20"]
[Round "-"]
[White "Cimon"]
[Black "BearFromUkraine"]
[Result "1-0"]
[WhiteElo "1831"]
[BlackElo "1091"]
[TimeControl "300"]
[EndTime "14:47:34 PDT"]
[Termination "Cimon won on time"]

1. Nf3 {[%clk 0:04:56.7]} 1... d6 {[%clk 0:04:58.1]} 2. d4 {[%clk 0:04:55.2]}
2... Nf6 {[%clk 0:04:53.4]} 3. c4 {[%clk 0:04:53.6]} 3... c5 {[%clk 0:04:49.6]}
4. d5 {[%clk 0:04:51.3]} 4... Bg4 {[%clk 0:04:46.7]} 5. Nc3 {[%clk 0:04:49.5]}
5... e6 {[%clk 0:04:43]} 6. e4 {[%clk 0:04:44.6]} 6... exd5 {[%clk 0:04:31.2]}
7. cxd5 {[%clk 0:04:42.7]} 7... Be7 {[%clk 0:04:26.9]} 8. Bf4 {[%clk 0:04:38]}
8... O-O {[%clk 0:04:22]} 9. Be2 {[%clk 0:04:33.1]} 9... Nbd7 {[%clk 0:04:18.6]}
10. O-O {[%clk 0:04:28.5]} 10... a6 {[%clk 0:04:12.5]} 11. a4 {[%clk 0:04:24.7]}
11... b5 {[%clk 0:04:10.5]} 12. axb5 {[%clk 0:04:22.2]} 12... axb5 {[%clk
0:04:09.4]} 13. Bxb5 {[%clk 0:04:17.9]} 13... Rxa1 {[%clk 0:04:07.1]} 14. Qxa1
{[%clk 0:04:16.2]} 14... Bxf3 {[%clk 0:04:00.6]} 15. gxf3 {[%clk 0:04:14.9]}
15... Nh5 {[%clk 0:03:46.3]} 16. Bg3 {[%clk 0:04:11.6]} 16... Bg5 {[%clk
0:03:30.2]} 17. f4 {[%clk 0:03:59.4]} 17... Bxf4 {[%clk 0:03:21.1]} 18. Qd1
{[%clk 0:03:55.3]} 18... Qg5 {[%clk 0:03:15.5]} 19. Qf3 {[%clk 0:03:50]} 19...
Ne5 {[%clk 0:03:03.4]} 20. Qg2 {[%clk 0:03:48.2]} 20... Nxg3 {[%clk 0:02:16.8]}
21. hxg3 {[%clk 0:03:39.9]} 21... Bd2 {[%clk 0:02:06.2]} 22. f4 {[%clk 0:03:35]}
22... Bxf4 {[%clk 0:01:58]} 23. gxf4 {[%clk 0:03:32.4]} 23... Qxg2+ {[%clk
0:01:53.3]} 24. Kxg2 {[%clk 0:03:30.8]} 24... Ng6 {[%clk 0:01:36.9]} 25. Kg3
{[%clk 0:03:19.5]} 25... Rb8 {[%clk 0:01:31.7]} 26. Ra1 {[%clk 0:03:15.5]} 26...
h6 {[%clk 0:01:28.4]} 27. Ra6 {[%clk 0:03:11.6]} 27... Rd8 {[%clk 0:01:17.1]}
28. Bc6 {[%clk 0:03:04.9]} 28... Kf8 {[%clk 0:01:14.5]} 29. Ra8 {[%clk
0:03:02.1]} 29... Rxa8 {[%clk 0:01:12.8]} 30. Bxa8 {[%clk 0:03:00.3]} 30... Ke7
{[%clk 0:01:11.3]} 31. Bc6 {[%clk 0:02:57.1]} 31... Nf8 {[%clk 0:01:04.6]} 32.
e5 {[%clk 0:02:51.5]} 32... dxe5 {[%clk 0:01:02.3]} 33. fxe5 {[%clk 0:02:50.1]}
33... g5 {[%clk 0:00:56.4]} 34. Ne4 {[%clk 0:02:45.1]} 34... f5 {[%clk
0:00:55.2]} 35. exf6+ {[%clk 0:02:43.5]} 35... Kf7 {[%clk 0:00:51.6]} 36. d6
{[%clk 0:02:38.5]} 36... Ke6 {[%clk 0:00:47.1]} 37. d7 {[%clk 0:02:27]} 37...
Nxd7 {[%clk 0:00:45.2]} 38. Bxd7+ {[%clk 0:02:23.7]} 38... Kxd7 {[%clk
0:00:44.3]} 39. Nxc5+ {[%clk 0:02:22.2]} 39... Ke8 {[%clk 0:00:38.2]} 40. b4
{[%clk 0:02:19.7]} 40... Kf7 {[%clk 0:00:37.2]} 41. Ne4 {[%clk 0:02:17.3]} 41...
h5 {[%clk 0:00:34.8]} 42. Nxg5+ {[%clk 0:02:15.1]} 42... Kxf6 {[%clk 0:00:33.4]}
43. Ne4+ {[%clk 0:02:12.9]} 43... Ke5 {[%clk 0:00:30.9]} 44. Nc3 {[%clk
0:02:08.1]} 44... Kd4 {[%clk 0:00:29.3]} 45. b5 {[%clk 0:02:06.7]} 45... Kc5
{[%clk 0:00:28.2]} 46. Kh4 {[%clk 0:02:05.1]} 46... Kb6 {[%clk 0:00:26.2]} 47.
Kxh5 {[%clk 0:02:03.8]} 47... Kc5 {[%clk 0:00:25.1]} 48. Kg5 {[%clk 0:02:02.5]}
48... Kb6 {[%clk 0:00:24.6]} 49. Kf5 {[%clk 0:01:56.8]} 49... Kc5 {[%clk
0:00:22.1]} 50. Ke5 {[%clk 0:01:50.4]} 50... Kb6 {[%clk 0:00:21.2]} 51. Kd6
{[%clk 0:01:48.4]} 51... Kb7 {[%clk 0:00:18.7]} 52. Nd5 {[%clk 0:01:44.8]} 52...
Kb8 {[%clk 0:00:16.3]} 53. Kc6 {[%clk 0:01:42.6]} 53... Kc8 {[%clk 0:00:14.3]}
54. b6 {[%clk 0:01:40.3]} 54... Kb8 {[%clk 0:00:13.5]} 55. b7 {[%clk 0:01:39]}
55... Ka7 {[%clk 0:00:10.8]} 56. Kc7 {[%clk 0:01:37.6]} 56... Ka6 {[%clk
0:00:09]} 57. b8=Q {[%clk 0:01:35.2]} 57... Ka5 {[%clk 0:00:07.4]} 58. Qb6+
{[%clk 0:01:32.9]} 1-0

[Event "Live Chess"]
[Site "Chess.com"]
[Date "2023.05.20"]
[Round "-"]
[White "GEMdzq"]
[Black "stevochess11"]
[Result "1-0"]
[WhiteElo "2245"]
[BlackElo "1755"]
[TimeControl "300"]
[EndTime "14:47:36 PDT"]
[Termination "GEMdzq won by resignation"]

1. e4 {[%clk 0:04:58.6]} 1... c5 {[%clk 0:04:53.9]} 2. d4 {[%clk 0:04:57.5]}
2... cxd4 {[%clk 0:04:52.8]} 3. c3 {[%clk 0:04:57.1]} 3... Nc6 {[%clk
0:04:52.5]} 4. Nf3 {[%clk 0:04:54.6]} 4... g6 {[%clk 0:04:52.4]} 5. Bc4 {[%clk
0:04:52.5]} 5... Bg7 {[%clk 0:04:52.3]} 6. O-O {[%clk 0:04:50.3]} 6... e6 {[%clk
0:04:52.2]} 7. cxd4 {[%clk 0:04:49.4]} 7... Nge7 {[%clk 0:04:52.1]} 8. Nc3
{[%clk 0:04:48.1]} 8... O-O {[%clk 0:04:51]} 9. Bg5 {[%clk 0:04:46]} 9... Qa5
{[%clk 0:04:47.6]} 10. d5 {[%clk 0:04:41.5]} 10... exd5 {[%clk 0:04:42.3]} 11.
exd5 {[%clk 0:04:41.4]} 11... h6 {[%clk 0:04:26.6]} 12. Bd2 {[%clk 0:04:30.4]}
12... Nb4 {[%clk 0:04:22.7]} 13. a3 {[%clk 0:04:23.3]} 13... Na6 {[%clk
0:04:04]} 14. Re1 {[%clk 0:03:56]} 14... Nf5 {[%clk 0:03:56.2]} 15. Ne4 {[%clk
0:03:44]} 15... Qc7 {[%clk 0:03:47.3]} 16. Rc1 {[%clk 0:03:41]} 16... Nc5 {[%clk
0:03:40.6]} 17. d6 {[%clk 0:03:32.1]} 17... Qc6 {[%clk 0:03:31.1]} 18. Nxc5
{[%clk 0:03:30.2]} 18... Qxc5 {[%clk 0:03:29.8]} 19. Bxf7+ {[%clk 0:03:28.8]}
19... Rxf7 {[%clk 0:03:26.4]} 20. Rxc5 {[%clk 0:03:28.7]} 20... Bxb2 {[%clk
0:03:23]} 21. Qb3 {[%clk 0:03:25.8]} 21... Bf6 {[%clk 0:03:12.3]} 22. Re8+
{[%clk 0:03:23.3]} 1-0

[Event "Live Chess"]
[Site "Chess.com"]
[Date "2023.05.20"]
[Round "-"]
[White "MarkLim1"]
[Black "weibs440"]
[Result "1-0"]
[WhiteElo "1670"]
[BlackElo "931"]
[TimeControl "300"]
[EndTime "14:47:47 PDT"]
[Termination "MarkLim1 won by resignation"]

1. d4 {[%clk 0:04:59.6]} 1... f5 {[%clk 0:04:58.1]} 2. Nf3 {[%clk 0:04:58.8]}
2... e6 {[%clk 0:04:56.4]} 3. c4 {[%clk 0:04:57.7]} 3... Nf6 {[%clk 0:04:54.8]}
4. e3 {[%clk 0:04:56.9]} 4... b6 {[%clk 0:04:52.4]} 5. Be2 {[%clk 0:04:52.2]}
5... Bb7 {[%clk 0:04:50.9]} 6. O-O {[%clk 0:04:51.4]} 6... Be7 {[%clk
0:04:36.1]} 7. b3 {[%clk 0:04:49.8]} 7... d6 {[%clk 0:04:35]} 8. Bb2 {[%clk
0:04:49.1]} 8... O-O {[%clk 0:04:33]} 9. Nfd2 {[%clk 0:04:48.5]} 9... Ne4 {[%clk
0:04:24.7]} 10. Bf3 {[%clk 0:04:45.3]} 10... d5 {[%clk 0:04:07.7]} 11. Nc3
{[%clk 0:04:39.7]} 11... Nd7 {[%clk 0:03:50.7]} 12. Rc1 {[%clk 0:04:37.5]} 12...
Ndf6 {[%clk 0:03:47.5]} 13. cxd5 {[%clk 0:04:35.6]} 13... exd5 {[%clk
0:03:45.5]} 14. Nb5 {[%clk 0:04:30.8]} 14... c6 {[%clk 0:03:31.3]} 15. Nc3
{[%clk 0:04:27.1]} 15... Qe8 {[%clk 0:03:20.5]} 16. Ne2 {[%clk 0:04:25.6]} 16...
Nxd2 {[%clk 0:02:42.5]} 17. Qxd2 {[%clk 0:04:22.8]} 17... Ne4 {[%clk 0:02:41]}
18. Qd1 {[%clk 0:04:18.1]} 18... Bd6 {[%clk 0:02:30.4]} 19. g3 {[%clk
0:04:12.9]} 19... g5 {[%clk 0:02:14.6]} 20. Rc2 {[%clk 0:04:09.5]} 20... g4
{[%clk 0:02:04.3]} 21. Bg2 {[%clk 0:04:08.5]} 21... Qh5 {[%clk 0:01:54.3]} 22.
Qc1 {[%clk 0:04:05.7]} 22... Ng5 {[%clk 0:01:46.4]} 23. Ba3 {[%clk 0:04:02]}
23... Nf3+ {[%clk 0:01:34.1]} 24. Bxf3 {[%clk 0:03:59.5]} 24... Bxa3 {[%clk
0:01:26.4]} 25. Bxg4 {[%clk 0:03:32.3]} 25... Qxg4 {[%clk 0:00:58.7]} 26. Qxa3
{[%clk 0:03:28.6]} 26... Qh3 {[%clk 0:00:48.3]} 27. Qd6 {[%clk 0:03:16.3]} 27...
Rad8 {[%clk 0:00:35.2]} 28. Qf4 {[%clk 0:03:12.8]} 28... Bc8 {[%clk 0:00:18.2]}
29. Nc1 {[%clk 0:03:10.4]} 29... Qg4 {[%clk 0:00:16.4]} 30. Qxg4+ {[%clk
0:03:04.1]} 30... fxg4 {[%clk 0:00:16.3]} 31. Nd3 {[%clk 0:03:02.7]} 31... Bf5
{[%clk 0:00:14.5]} 32. Rc3 {[%clk 0:02:58.5]} 32... Be4 {[%clk 0:00:13.1]} 33.
Ne5 {[%clk 0:02:54.9]} 33... Rf3 {[%clk 0:00:11.7]} 34. Nxf3 {[%clk 0:02:50.8]}
34... Bxf3 {[%clk 0:00:09.4]} 35. Rxc6 {[%clk 0:02:49.3]} 1-0

[Event "Live Chess"]
[Site "Chess.com"]
[Date "2023.05.20"]
[Round "-"]
[White "jennybobby44"]
[Black "Daniel_Gliddon_FA"]
[Result "0-1"]
[WhiteElo "1842"]
[BlackElo "1329"]
[TimeControl "300"]
[EndTime "14:47:58 PDT"]
[Termination "Daniel_Gliddon_FA won by resignation"]

1. Nf3 {[%clk 0:04:59.5]} 1... Nc6 {[%clk 0:04:52.8]} 2. d4 {[%clk 0:04:57.5]}
2... d5 {[%clk 0:04:48.6]} 3. c4 {[%clk 0:04:56.1]} 3... Bg4 {[%clk 0:04:46.1]}
4. e3 {[%clk 0:04:54.4]} 4... Bxf3 {[%clk 0:04:42.5]} 5. Qxf3 {[%clk 0:04:53]}
5... e6 {[%clk 0:04:41.4]} 6. Be2 {[%clk 0:04:50]} 6... Qf6 {[%clk 0:04:35.8]}
7. O-O {[%clk 0:04:45.4]} 7... Nb4 {[%clk 0:04:24]} 8. Bd1 {[%clk 0:04:41.2]}
8... Qxf3 {[%clk 0:04:19.2]} 9. gxf3 {[%clk 0:04:39.7]} 9... Nc6 {[%clk
0:04:13.1]} 10. cxd5 {[%clk 0:04:33.3]} 10... exd5 {[%clk 0:04:10.4]} 11. Nc3
{[%clk 0:04:32.7]} 11... Nf6 {[%clk 0:04:05.8]} 12. Nb5 {[%clk 0:04:30.9]} 12...
O-O-O {[%clk 0:04:03]} 13. a3 {[%clk 0:04:28.2]} 13... a6 {[%clk 0:04:01.9]} 14.
Nc3 {[%clk 0:04:27.1]} 14... Bd6 {[%clk 0:03:57.8]} 15. Bc2 {[%clk 0:04:21.1]}
15... g5 {[%clk 0:03:50.6]} 16. Bf5+ {[%clk 0:04:17.9]} 16... Kb8 {[%clk
0:03:45]} 17. Bd2 {[%clk 0:04:15.7]} 17... h5 {[%clk 0:03:41.6]} 18. b4 {[%clk
0:04:07.4]} 18... g4 {[%clk 0:03:39.9]} 19. fxg4 {[%clk 0:04:05.2]} 19... hxg4
{[%clk 0:03:38.5]} 20. f4 {[%clk 0:03:46]} 20... gxf3 {[%clk 0:03:34.6]} 21.
Rxf3 {[%clk 0:03:44.8]} 21... Bxh2+ {[%clk 0:03:31.9]} 22. Kf1 {[%clk
0:03:41.4]} 22... Bd6 {[%clk 0:03:14.7]} 23. Ke2 {[%clk 0:03:38.2]} 23... Rh2+
{[%clk 0:03:10]} 24. Kd3 {[%clk 0:03:37.4]} 24... Bxb4 {[%clk 0:02:58.7]} 25.
Be6 {[%clk 0:02:57.1]} 25... Bxa3 {[%clk 0:02:45.3]} 26. Nxd5 {[%clk 0:02:41.9]}
26... fxe6 {[%clk 0:02:37.6]} 27. Nxf6 {[%clk 0:02:35.4]} 27... e5 {[%clk
0:02:33.7]} 28. Rxa3 {[%clk 0:02:29.9]} 28... exd4 {[%clk 0:02:22.5]} 29. exd4
{[%clk 0:02:29.1]} 29... Rxd4+ {[%clk 0:02:18.4]} 30. Kc2 {[%clk 0:02:24.2]}
30... Rdxd2+ {[%clk 0:02:16.6]} 31. Kc3 {[%clk 0:02:18.1]} 31... Rc2+ {[%clk
0:02:15.2]} 32. Kd3 {[%clk 0:02:15.4]} 32... Rhd2+ {[%clk 0:02:13.3]} 33. Ke3
{[%clk 0:02:13.1]} 33... Re2+ {[%clk 0:02:11.2]} 34. Kd3 {[%clk 0:02:09.3]}
34... Red2+ {[%clk 0:02:05.5]} 35. Ke4 {[%clk 0:02:06.2]} 35... Rc4+ {[%clk
0:02:01.5]} 36. Kf5 {[%clk 0:02:03.5]} 36... Nd4+ {[%clk 0:01:56.7]} 37. Kg6
{[%clk 0:02:00.9]} 37... Nxf3 {[%clk 0:01:54.5]} 38. Rxf3 {[%clk 0:02:00.8]}
38... Rc6 {[%clk 0:01:49.4]} 39. Kf7 {[%clk 0:01:59.6]} 39... b5 {[%clk
0:01:37.4]} 40. Ke7 {[%clk 0:01:58.6]} 40... Kc8 {[%clk 0:01:30.6]} 41. Rg3
{[%clk 0:01:49.9]} 41... Kb7 {[%clk 0:01:26]} 42. Re3 {[%clk 0:01:39.1]} 42...
b4 {[%clk 0:01:21.8]} 43. Nd7 {[%clk 0:01:37.3]} 43... a5 {[%clk 0:01:14.5]} 44.
Ne5 {[%clk 0:01:36.5]} 44... Rcd6 {[%clk 0:01:10.5]} 45. Nc4 {[%clk 0:01:35.1]}
45... Rd7+ {[%clk 0:01:07.7]} 46. Ke6 {[%clk 0:01:33.6]} 46... R2d4 {[%clk
0:01:04.9]} 47. Nxa5+ {[%clk 0:01:31.4]} 47... Kb6 {[%clk 0:01:01.1]} 48. Re5
{[%clk 0:01:26]} 48... R4d6+ {[%clk 0:00:59.1]} 49. Kf5 {[%clk 0:01:22.6]} 49...
Rd5 {[%clk 0:00:57.6]} 50. Nb3 {[%clk 0:01:21.3]} 50... Rxe5+ {[%clk 0:00:55]}
51. Kxe5 {[%clk 0:01:21.2]} 51... c5 {[%clk 0:00:52.9]} 0-1

[Event "Live Chess"]
[Site "Chess.com"]
[Date "2023.05.20"]
[Round "-"]
[White "Mikhail_Golubev"]
[Black "LutherSullivan"]
[Result "1-0"]
[WhiteElo "2519"]
[BlackElo "2039"]
[TimeControl "300"]
[EndTime "14:48:02 PDT"]
[Termination "Mikhail_Golubev won on time"]

1. e4 {[%clk 0:04:57.4]} 1... e5 {[%clk 0:04:58.1]} 2. Nf3 {[%clk 0:04:56.3]}
2... Nc6 {[%clk 0:04:57.8]} 3. Bc4 {[%clk 0:04:55.5]} 3... Bc5 {[%clk
0:04:56.2]} 4. c3 {[%clk 0:04:54.3]} 4... Nf6 {[%clk 0:04:54.3]} 5. d4 {[%clk
0:04:53.9]} 5... exd4 {[%clk 0:04:51.5]} 6. cxd4 {[%clk 0:04:53.8]} 6... Bb4+
{[%clk 0:04:51.1]} 7. Nbd2 {[%clk 0:04:52.9]} 7... d5 {[%clk 0:04:45.2]} 8. exd5
{[%clk 0:04:51.7]} 8... Nxd5 {[%clk 0:04:44.9]} 9. O-O {[%clk 0:04:50.9]} 9...
O-O {[%clk 0:04:42]} 10. a3 {[%clk 0:04:48.7]} 10... Be7 {[%clk 0:04:31.2]} 11.
Re1 {[%clk 0:04:46]} 11... Nb6 {[%clk 0:04:27]} 12. Ba2 {[%clk 0:04:44.3]} 12...
Bg4 {[%clk 0:03:50.1]} 13. h3 {[%clk 0:03:54.8]} 13... Bh5 {[%clk 0:03:21.8]}
14. g4 {[%clk 0:03:53.5]} 14... Bg6 {[%clk 0:03:13.8]} 15. Ne4 {[%clk
0:03:52.1]} 15... Bd6 {[%clk 0:01:18.6]} 16. Bg5 {[%clk 0:03:24.3]} 16... Qd7
{[%clk 0:01:07.4]} 17. Qd2 {[%clk 0:03:18]} 17... Rae8 {[%clk 0:01:04]} 18. Nxd6
{[%clk 0:02:39.7]} 18... Qxd6 {[%clk 0:00:59.1]} 19. Bf4 {[%clk 0:02:32.8]}
19... Qd7 {[%clk 0:00:56.2]} 20. d5 {[%clk 0:02:25.8]} 20... Ne7 {[%clk
0:00:50]} 21. Ne5 {[%clk 0:02:07.8]} 21... Qb5 {[%clk 0:00:40.5]} 22. Nxg6
{[%clk 0:01:33.5]} 22... hxg6 {[%clk 0:00:40.4]} 23. d6 {[%clk 0:01:26.7]} 23...
cxd6 {[%clk 0:00:38.9]} 24. Bxd6 {[%clk 0:01:25.4]} 24... Nbc8 {[%clk
0:00:36.4]} 25. Bb4 {[%clk 0:01:20.4]} 25... Rd8 {[%clk 0:00:33.2]} 26. Qe2
{[%clk 0:01:19.5]} 26... Qxe2 {[%clk 0:00:31.1]} 27. Rxe2 {[%clk 0:01:19.4]}
27... Rfe8 {[%clk 0:00:26.5]} 28. Rae1 {[%clk 0:01:16.9]} 28... Kf8 {[%clk
0:00:24.3]} 29. a4 {[%clk 0:00:59]} 29... Rd4 {[%clk 0:00:19.9]} 30. Re4 {[%clk
0:00:53.2]} 30... Rxe4 {[%clk 0:00:15.5]} 31. Rxe4 {[%clk 0:00:53.1]} 31... Rd8
{[%clk 0:00:14.9]} 32. Kg2 {[%clk 0:00:51]} 32... Nd6 {[%clk 0:00:13.7]} 33. Rd4
{[%clk 0:00:49.4]} 33... Nec8 {[%clk 0:00:13.2]} 34. a5 {[%clk 0:00:44.7]} 34...
Ke7 {[%clk 0:00:12.4]} 35. Bd5 {[%clk 0:00:42.3]} 35... b6 {[%clk 0:00:11.4]}
36. a6 {[%clk 0:00:39.3]} 36... Kf6 {[%clk 0:00:09.4]} 37. Bc3 {[%clk
0:00:33.8]} 37... Nb5 {[%clk 0:00:07.8]} 38. Rd3+ {[%clk 0:00:13.1]} 38... Nxc3
{[%clk 0:00:06.8]} 39. bxc3 {[%clk 0:00:13]} 39... Ne7 {[%clk 0:00:06.1]} 40. c4
{[%clk 0:00:11.8]} 40... Nxd5 {[%clk 0:00:05]} 41. cxd5 {[%clk 0:00:11.4]} 41...
Ke5 {[%clk 0:00:04.1]} 42. Re3+ {[%clk 0:00:10.8]} 42... Kxd5 {[%clk 0:00:03.3]}
43. Rd3+ {[%clk 0:00:10.1]} 43... Kc5 {[%clk 0:00:03.2]} 44. Rxd8 {[%clk
0:00:09.6]} 44... Kb5 {[%clk 0:00:03.1]} 45. Rf8 {[%clk 0:00:09.2]} 45... Kxa6
{[%clk 0:00:03]} 46. Rxf7 {[%clk 0:00:08.9]} 46... b5 {[%clk 0:00:02.9]} 47.
Rxg7 {[%clk 0:00:08.5]} 47... Kb6 {[%clk 0:00:02.8]} 48. Rxg6+ {[%clk
0:00:07.9]} 48... Ka5 {[%clk 0:00:02.7]} 49. Rg7 {[%clk 0:00:07.4]} 49... a6
{[%clk 0:00:02.6]} 50. Rb7 {[%clk 0:00:06.5]} 50... b4 {[%clk 0:00:02.5]} 51. g5
{[%clk 0:00:06]} 1-0

[Event "Live Chess"]
[Site "Chess.com"]
[Date "2023.05.20"]
[Round "-"]
[White "HoarseyHorsey"]
[Black "hturner40"]
[Result "1-0"]
[WhiteElo "1422"]
[BlackElo "1801"]
[TimeControl "300"]
[EndTime "14:48:14 PDT"]
[Termination "HoarseyHorsey won on time"]

1. d4 {[%clk 0:04:58.6]} 1... Nf6 {[%clk 0:04:58]} 2. c4 {[%clk 0:04:57.8]} 2...
Nc6 {[%clk 0:04:56.7]} 3. d5 {[%clk 0:04:52.3]} 3... Ne5 {[%clk 0:04:54.9]} 4.
f4 {[%clk 0:04:49.6]} 4... Ng6 {[%clk 0:04:53.6]} 5. e4 {[%clk 0:04:46.7]} 5...
e5 {[%clk 0:04:52.2]} 6. f5 {[%clk 0:04:43.5]} 6... Nxe4 {[%clk 0:04:48.8]} 7.
fxg6 {[%clk 0:04:40.6]} 7... Qh4+ {[%clk 0:04:46.5]} 8. g3 {[%clk 0:04:35.6]}
8... Nxg3 {[%clk 0:04:41.7]} 9. hxg3 {[%clk 0:04:34.7]} 9... Qxh1 {[%clk
0:04:37.3]} 10. Be3 {[%clk 0:04:32.1]} 10... hxg6 {[%clk 0:04:16.9]} 11. Nc3
{[%clk 0:04:30.6]} 11... Bb4 {[%clk 0:04:14.4]} 12. Qf3 {[%clk 0:04:20.3]} 12...
Bxc3+ {[%clk 0:03:39.8]} 13. bxc3 {[%clk 0:04:18.2]} 13... d6 {[%clk 0:03:28.6]}
14. O-O-O {[%clk 0:04:07.9]} 14... Qxf3 {[%clk 0:03:08.4]} 15. Nxf3 {[%clk
0:04:06.1]} 15... Bg4 {[%clk 0:03:06.6]} 16. Be2 {[%clk 0:04:03.9]} 16... e4
{[%clk 0:02:53.5]} 17. Nd4 {[%clk 0:04:01.8]} 17... Bxe2 {[%clk 0:02:49.7]} 18.
Nxe2 {[%clk 0:04:01.7]} 18... Rh2 {[%clk 0:02:47.9]} 19. Kd2 {[%clk 0:03:55]}
19... O-O-O {[%clk 0:02:40.4]} 20. Rf1 {[%clk 0:03:53.5]} 20... f5 {[%clk
0:02:37.6]} 21. Ke1 {[%clk 0:03:48.2]} 21... Rdh8 {[%clk 0:02:30.3]} 22. Rf2
{[%clk 0:03:26.6]} 22... Rxf2 {[%clk 0:02:11.2]} 23. Kxf2 {[%clk 0:03:22.7]}
23... Rh2+ {[%clk 0:02:08]} 24. Ke1 {[%clk 0:03:21.3]} 24... a5 {[%clk
0:01:47.9]} 25. Bg5 {[%clk 0:03:17.1]} 25... c6 {[%clk 0:01:35]} 26. Bf4 {[%clk
0:02:58.3]} 26... Kd7 {[%clk 0:01:30.4]} 27. dxc6+ {[%clk 0:02:51.7]} 27... bxc6
{[%clk 0:01:27.4]} 28. Bg5 {[%clk 0:02:46.8]} 28... d5 {[%clk 0:01:18.9]} 29.
cxd5 {[%clk 0:02:45.1]} 29... cxd5 {[%clk 0:01:17.2]} 30. Bf4 {[%clk 0:02:40.7]}
30... Rh1+ {[%clk 0:01:10.9]} 31. Kd2 {[%clk 0:02:38.9]} 31... Ra1 {[%clk
0:01:05.4]} 32. Nc1 {[%clk 0:02:36.6]} 32... Ke6 {[%clk 0:01:02.6]} 33. Kc2
{[%clk 0:02:28.2]} 33... Kf6 {[%clk 0:00:59.7]} 34. Kb2 {[%clk 0:02:27.1]} 34...
Rxc1 {[%clk 0:00:57.4]} 35. Kxc1 {[%clk 0:02:27]} 35... g5 {[%clk 0:00:55]} 36.
Be3 {[%clk 0:02:24.1]} 36... Ke5 {[%clk 0:00:52.1]} 37. Bxg5 {[%clk 0:02:21.8]}
37... d4 {[%clk 0:00:48.6]} 38. cxd4+ {[%clk 0:02:18.8]} 38... Kxd4 {[%clk
0:00:47.4]} 39. Kd2 {[%clk 0:02:14.9]} 39... a4 {[%clk 0:00:44.3]} 40. Bf4
{[%clk 0:02:03.5]} 40... g6 {[%clk 0:00:41.9]} 41. a3 {[%clk 0:01:49.5]} 41...
Kc4 {[%clk 0:00:39.5]} 42. Kc2 {[%clk 0:01:48.2]} 42... Kd4 {[%clk 0:00:36.5]}
43. Kd2 {[%clk 0:01:42.3]} 43... Kc4 {[%clk 0:00:35.4]} 44. Bd6 {[%clk
0:01:37.9]} 44... Kb3 {[%clk 0:00:31.4]} 45. Ke3 {[%clk 0:01:25.6]} 45... Kc2
{[%clk 0:00:15.7]} 46. Bc5 {[%clk 0:01:20.7]} 46... Kb3 {[%clk 0:00:12.8]} 47.
Kf4 {[%clk 0:01:16.2]} 47... Kc4 {[%clk 0:00:09.2]} 48. Bd6 {[%clk 0:01:13]}
48... Kd3 {[%clk 0:00:07.6]} 49. Bb4 {[%clk 0:01:11.1]} 49... e3 {[%clk
0:00:05.5]} 50. Kg5 {[%clk 0:01:07.7]} 1-0